bitfinex/quotes_SOLUSD_20240624
["timestamp","ask_amount","ask_price","bid_price","bid_amount"]
[1719232164891,7.7784,128.57,128.52,7.7806]
[1719232165399,7.7775,128.58,128.53,7.7801]
[1719232165586,1.37881797,128.6,128.49,138.9128]
[1719232165788,7.7767,128.59,128.55,7.7786]
[1719232166593,7.7767,128.59,128.54,19.4477]
[1719232166791,9.15511797,128.6,128.54,19.4477]
[1719232167009,7.7763,128.6,128.54,19.4477]
[1719232167311,21.5689,128.61,128.54,19.4477]
[1719232167312,7.7768,128.59,128.54,27.2269]
[1719232167490,7.7768,128.59,128.54,19.4477]
[1719232167686,7.7763,128.6,128.55,7.7786]
[1719232167987,7.7763,128.6,128.54,19.4477]
[1719232168188,7.7767,128.59,128.55,7.7788]
[1719232168996,7.7762,128.6,128.56,7.7784]
[1719232170404,22.58693873,128.64,128.57,19.444]
[1719232170609,25.5063,128.65,128.61,7.775]
[1719232170610,6.0735,128.65,128.61,7.775]
[1719232170906,16.4079,128.67,128.62,19.4364]
[1719232171114,7.7724,128.66,128.62,19.4364]
[1719232171316,7.7724,128.66,128.61,7.7751]
[1719232171692,24.1799,128.67,128.62,7.7748]
[1719232171891,24.1799,128.67,128.61,7.7751]
[1719232172418,37.997,128.71,128.6,115.3215]
[1719232172595,29.3585,128.71,128.61,51.2979]
[1719232172782,21.5891,128.71,128.62,100.0]
[1719232172982,21.5891,128.71,128.67,7.7716]
[1719232173187,21.5891,128.71,128.66,27.2031]
[1719232173402,21.5891,128.71,128.66,19.4309]
[1719232173620,21.5891,128.71,128.66,27.2029]
[1719232173911,14.3219,128.74,128.68,19.4276]
[1719232174226,6.5543,128.74,128.68,19.4276]
[1719232174593,7.7688,128.72,128.66,7.772]
[1719232174795,25.974,128.74,128.65,19.4311]
[1719232175026,7.7707,128.69,128.63,7.774]
[1719232175317,6.5543,128.74,128.67,7.7716]
[1719232175516,7.7685,128.73,128.67,7.7716]
[1719232175732,7.7685,128.73,128.68,7.7711]
[1719232176023,7.7689,128.72,128.67,7.7715]
[1719232176325,6.5543,128.74,128.66,27.2031]
[1719232176487,7.771,128.69,128.64,7.7733]
[1719232176831,7.7693,128.72,128.66,7.7719]
[1719232177234,7.7695,128.71,128.66,7.7719]
[1719232178539,7.7689,128.72,128.67,7.7716]
[1719232179824,0.77718194,128.68,128.67,7.7716]
[1719232180403,0.77718194,128.68,128.65,19.4324]
[1719232180404,0.77718194,128.68,128.64,7.7734]
[1719232181112,0.77718194,128.68,128.65,7.773]
[1719232181306,0.77718194,128.68,128.66,7.7723]
[1719232181511,0.77718194,128.68,128.65,19.4311]
[1719232181825,0.77718194,128.68,128.67,7.7718]
[1719232182424,0.77718194,128.68,128.62,19.4356]
[1719232182629,0.77718194,128.68,128.63,45.0]
[1719232182821,0.77718194,128.68,128.63,52.7737]
[1719232183018,0.77718194,128.68,128.64,7.7734]
[1719232183831,7.7723,128.67,128.62,19.4356]
[1719232184139,0.77718194,128.68,128.62,19.4356]
[1719232184437,8.54878194,128.68,128.63,7.7739]
[1719232184614,0.77718194,128.68,128.62,19.4356]
[1719232184818,8.54858194,128.68,128.63,7.7738]
[1719232185011,8.54858194,128.68,128.62,27.2101]
[1719232185315,7.7719,128.67,128.62,19.4356]
[1719232186016,7.09758194,128.68,128.6,7.7759]
[1719232186222,7.7726,128.66,128.61,7.7754]
[1719232187934,7.7726,128.66,128.6,19.4387]
[1719232187935,8.47639991,128.68,128.62,19.4368]
[1719232188123,16.24799991,128.68,128.63,7.7737]
[1719232188319,7.7719,128.67,128.62,27.2113]
[1719232188727,16.24769991,128.68,128.63,7.7741]
[1719232188940,16.24769991,128.68,128.64,7.7735]
[1719232188941,8.47639991,128.68,128.64,7.7735]
[1719232189233,8.47639991,128.68,128.54,256.2]
[1719232189234,22.1817,128.65,128.44,100.0]
[1719232189444,22.1817,128.65,128.5,6.3837]
[1719232189741,7.7762,128.6,128.5,6.3837]
[1719232190038,7.7771,128.59,128.5,6.3837]
[1719232190231,7.7771,128.59,128.53,27.2304]
[1719232190536,7.778,128.57,128.51,7.7813]
[1719232190912,7.7774,128.58,128.52,27.2323]
[1719232191118,7.7774,128.58,128.52,19.4517]
[1719232191534,7.7774,128.58,128.53,7.7802]
[1719232191922,7.7774,128.58,128.52,27.2323]
[1719232192233,19.4419,128.59,128.5,14.1654]
[1719232192416,19.4419,128.59,128.49,19.4557]
[1719232192417,19.4419,128.59,128.51,7.7814]
[1719232192740,7.778,128.57,128.51,27.2349]
[1719232193232,7.7787,128.56,128.51,27.2349]
[1719232193930,7.7793,128.55,128.5,7.7819]
[1719232194334,7.7793,128.55,128.49,7.7823]
[1719232194518,7.7798,128.54,128.49,7.7823]
[1719232194719,7.7803,128.53,128.48,27.2401]
[1719232194918,7.781,128.52,128.47,7.7837]
[1719232195135,19.4478,128.55,128.45,19.4615]
[1719232195441,7.7811,128.52,128.47,7.7838]
[1719232195770,7.7801,128.54,128.48,7.783]
[1719232195914,15.0796,128.56,128.48,7.783]
[1719232196119,7.78,128.54,128.49,7.7824]
[1719232196429,7.78,128.54,128.48,7.783]
[1719232196633,7.7804,128.53,128.48,7.783]
[1719232197226,7.7804,128.53,128.47,27.2432]
[1719232197837,7.7811,128.52,128.47,27.2432]
[1719232198037,7.7811,128.52,128.47,19.4596]
[1719232198236,7.7824,128.5,128.44,27.2482]
[1719232198430,19.4507,128.53,128.44,19.4628]
[1719232198641,7.7822,128.5,128.45,7.7847]
[1719232198835,19.4539,128.51,128.41,19.4677]
[1719232199025,7.7838,128.48,128.43,7.7863]
[1719232199347,7.7833,128.48,128.43,7.7862]
[1719232199563,7.7833,128.48,128.42,7.7867]
[1719232199867,0.77718194,128.43,128.42,7.7867]
[1719232201532,0.77718194,128.43,128.41,27.2551]
[1719232202243,0.77718194,128.43,128.42,7.7869]
[1719232203051,0.77718194,128.43,128.42,52.7869]
[1719232204048,0.77718194,128.43,128.42,152.7869]
[1719232204654,34.5271,128.56,128.53,7.7802]
[1719232204655,21.2106,128.56,128.53,7.7802]
[1719232204830,22.7556,128.6,128.54,7.7796]
[1719232205035,22.7556,128.6,128.53,7.78]
[1719232205247,22.7556,128.6,128.52,19.4517]
[1719232205534,7.7785,128.56,128.52,19.4517]
[1719232205730,19.4429,128.59,128.49,19.4553]
[1719232205934,7.7788,128.56,128.51,7.7814]
[1719232206235,7.7789,128.56,128.5,7.7817]
[1719232206768,7.7771,128.59,128.53,7.7801]
[1719232206935,7.7771,128.59,128.53,27.2301]
[1719232207129,7.7774,128.58,128.53,19.45]
[1719232207333,7.7774,128.58,128.53,27.2302]
[1719232207559,7.7778,128.57,128.53,19.45]
[1719232207740,7.7778,128.57,128.52,7.7807]
[1719232207944,7.778,128.57,128.51,7.7814]
[1719232208237,7.778,128.57,128.52,7.7808]
[1719232209169,7.7785,128.56,128.51,7.7812]
[1719232209370,7.7791,128.55,128.5,19.4537]
[1719232209570,19.4437,128.58,128.47,19.4583]
[1719232209775,45.0,128.57,128.49,7.7826]
[1719232210067,45.0,128.57,128.48,19.4567]
[1719232210262,22.719,128.53,128.44,7.7852]
[1719232210566,53.209,128.53,128.4,38.9401]
[1719232210774,64.4524,128.52,128.43,27.2515]
[1719232210943,7.7829,128.49,128.43,27.2516]
[1719232211342,7.7829,128.49,128.43,19.4654]
[1719232211536,7.7829,128.49,128.43,27.2513]
[1719232211844,7.7822,128.5,128.43,19.4654]
[1719232212052,7.7812,128.52,128.46,7.784]
[1719232212355,7.7812,128.52,128.47,7.7838]
[1719232212664,22.719,128.53,128.49,7.7824]
[1719232212856,22.719,128.53,128.47,19.4597]
[1719232213061,22.5541,128.57,128.5,7.782]
[1719232213253,7.7785,128.56,128.49,19.4563]
[1719232213453,30.3323,128.57,128.52,7.7808]
[1719232213653,22.5541,128.57,128.39,45.3599]
[1719232213864,7.7831,128.49,128.43,7.7861]
[1719232214162,30.49,128.55,128.45,27.2473]
[1719232214163,7.7815,128.51,128.45,27.2473]
[1719232214364,7.7815,128.51,128.39,61.8246]
[1719232214365,7.7798,128.54,128.44,100.0]
[1719232214564,7.7798,128.54,128.49,7.7826]
[1719232215058,22.5541,128.57,128.47,19.4597]
[1719232215059,19.447,128.56,128.47,19.4597]
[1719232215271,19.447,128.56,128.48,52.7832]
[1719232215272,7.78,128.54,128.48,52.7832]
[1719232215650,7.78,128.54,128.49,7.7826]
[1719232215837,7.7793,128.55,128.49,7.7826]
[1719232216781,43.64891148,128.6,128.5,45.0]
[1719232217074,6.451,128.6,128.48,83.9147]
[1719232217260,7.7777,128.58,128.52,7.7805]
[1719232217447,7.7778,128.57,128.53,45.0]
[1719232217646,6.25439549,128.63,128.54,27.2277]
[1719232217880,7.7762,128.6,128.54,27.2277]
[1719232218177,25.8859,128.64,128.53,45.0]
[1719232218178,7.7777,128.58,128.53,45.0]
[1719232218871,7.7777,128.58,128.53,52.7801]
[1719232219045,19.4377,128.62,128.54,7.7795]
[1719232219251,6.451,128.64,128.53,64.4502]
[1719232219572,6.451,128.64,128.55,27.2264]
[1719232219770,6.451,128.64,128.57,7.7777]
[1719232219963,7.7748,128.62,128.56,52.7783]
[1719232220775,7.7748,128.62,128.57,7.7778]
[1719232220978,7.7744,128.63,128.58,7.7771]
[1719232221277,6.451,128.64,128.57,19.4442]
[1719232221472,6.451,128.64,128.54,6.4737]
[1719232221769,6.451,128.64,128.53,16.3714]
[1719232221971,19.4386,128.62,128.51,6.3636]
[1719232222276,7.7766,128.59,128.54,7.7796]
[1719232222445,1.44594156,128.62,128.51,45.2681]
[1719232222641,7.7763,128.6,128.55,7.7789]
[1719232222864,7.7763,128.6,128.51,45.2681]
[1719232222865,7.7763,128.6,128.53,19.4495]
[1719232223762,1.44594156,128.62,128.55,19.4475]
[1719232223967,36.941,128.64,128.56,52.7781]
[1719232224161,7.775,128.62,128.56,52.7781]
[1719232224567,7.7743,128.63,128.58,7.7772]
[1719232224883,7.7743,128.63,128.57,27.2218]
[1719232225089,7.7743,128.63,128.58,45.0]
[1719232226179,25.885,128.64,128.56,7.7783]
[1719232226555,7.775,128.62,128.57,7.7777]
[1719232227570,7.7751,128.62,128.57,7.7775]
[1719232227767,7.7754,128.61,128.56,27.2242]
[1719232228273,7.7747,128.63,128.57,7.7775]
[1719232228681,6.451,128.64,128.56,27.2243]
[1719232228888,6.451,128.64,128.54,19.4491]
[1719232229057,7.7757,128.61,128.56,7.7783]
[1719232229956,7.7749,128.62,128.57,7.7777]
[1719232230457,6.451,128.64,128.57,7.7777]
[1719232230666,7.7749,128.62,128.57,7.7777]
[1719232230958,14.2249,128.64,128.58,52.7767]
[1719232231153,7.7739,128.64,128.58,52.7767]
[1719232231573,6.0637,128.67,128.58,51.6654]
[1719232232076,8.03761954,128.67,128.61,19.4383]
[1719232232277,15.1039,128.68,128.62,45.0]
[1719232232278,7.7727,128.66,128.62,45.0]
[1719232232471,7.7731,128.65,128.61,19.4383]
[1719232232852,15.1039,128.68,128.6,7.7759]
[1719232232853,34.5329,128.68,128.6,7.7759]
[1719232233057,7.7727,128.66,128.61,7.7753]
[1719232233461,34.5329,128.68,128.63,7.7741]
[1719232233462,22.8755,128.68,128.63,7.7741]
[1719232233657,15.1039,128.68,128.61,19.438]
[1719232233859,7.7732,128.65,128.58,26.1071]
[1719232234063,7.7726,128.66,128.61,7.7751]
[1719232235259,7.7719,128.67,128.62,7.7747]
[1719232235465,7.7725,128.66,128.61,7.7752]
[1719232235679,34.5321,128.68,128.6,19.4399]
[1719232235856,7.7731,128.65,128.6,27.2155]
[1719232236061,7.7756,128.61,128.56,23.1141]
[1719232236275,7.775,128.62,128.56,23.1143]
[1719232236586,7.7754,128.61,128.56,23.1143]
[1719232236759,7.7754,128.61,128.56,7.7782]
[1719232236958,6.6169,128.64,128.54,19.4478]
[1719232236959,7.7771,128.59,128.54,19.4478]
[1719232237174,7.7777,128.58,128.53,7.7802]
[1719232237488,19.4389,128.61,128.49,40.8524]
[1719232237489,19.4417,128.59,128.49,40.8524]
[1719232237669,19.4417,128.59,128.51,7.781]
[1719232237857,19.4417,128.59,128.49,29.1791]
[1719232238064,7.7788,128.56,128.49,21.3968]
[1719232238273,7.7788,128.56,128.5,7.7817]
[1719232238666,7.7791,128.55,128.49,27.239]
[1719232238876,7.7818,128.51,128.46,25.8665]
[1719232239195,7.7821,128.5,128.43,58.3936]
[1719232239355,7.7821,128.5,128.45,7.7851]
[1719232239565,7.7821,128.5,128.43,58.3936]
[1719232239566,7.7821,128.5,128.44,7.7855]
[1719232239873,7.7816,128.51,128.46,7.7844]
[1719232240055,64.4479,128.55,128.42,6.4911]
[1719232240261,7.7833,128.48,128.42,27.2528]
[1719232240461,7.7833,128.48,128.43,7.7861]
[1719232240665,7.7833,128.48,128.42,19.4661]
[1719232240871,49.941,128.53,128.44,7.7853]
[1719232240872,7.7826,128.5,128.44,7.7853]
[1719232241076,7.7829,128.49,128.42,19.4661]
[1719232241290,7.7822,128.5,128.44,7.7856]
[1719232241772,7.7827,128.49,128.43,7.7861]
[1719232242086,49.941,128.53,128.44,7.7855]
[1719232242087,7.782,128.51,128.44,7.7855]
[1719232242287,49.941,128.53,128.42,19.4661]
[1719232242288,7.7834,128.48,128.42,27.2528]
[1719232242486,49.941,128.53,128.4,24.3455]
[1719232242487,7.7851,128.46,128.4,24.3455]
[1719232242807,7.7835,128.48,128.42,7.7868]
[1719232244069,19.4548,128.51,128.41,19.4684]
[1719232244287,7.7852,128.45,128.38,19.4722]
[1719232244499,7.7847,128.46,128.4,7.788]
[1719232245488,7.7845,128.46,128.41,7.7873]
[1719232245688,45.0,128.5,128.42,19.4671]
[1719232245889,45.0,128.51,128.42,19.4671]
[1719232246487,45.0,128.51,128.39,19.4708]
[1719232246798,7.7858,128.44,128.39,19.4708]
[1719232246996,7.7868,128.43,128.36,19.4757]
[1719232247293,7.7868,128.43,128.37,7.7895]
[1719232247492,19.465,128.44,128.36,19.4757]
[1719232248001,7.7865,128.43,128.37,7.7895]
[1719232248314,7.7849,128.46,128.35,100.0]
[1719232248588,7.7831,128.49,128.44,19.4639]
[1719232248798,6.5244,128.51,128.44,19.4639]
[1719232248983,7.7827,128.49,128.44,27.2496]
[1719232249182,7.7834,128.48,128.43,7.7861]
[1719232249383,6.5244,128.51,128.42,7.7867]
[1719232249384,25.9782,128.51,128.42,7.7867]
[1719232249605,7.7834,128.48,128.43,7.7863]
[1719232249780,6.5244,128.51,128.44,45.0]
[1719232249988,7.7813,128.52,128.47,27.2425]
[1719232250183,7.7813,128.52,128.47,19.4588]
[1719232250377,6.3774,128.55,128.44,64.4639]
[1719232250581,19.4537,128.51,128.44,45.0]
[1719232250777,7.7839,128.47,128.42,14.3205]
[1719232251098,7.7844,128.47,128.41,27.2552]
[1719232251297,7.7844,128.47,128.42,45.0]
[1719232251474,7.7844,128.47,128.42,52.7867]
[1719232251674,7.7844,128.47,128.42,7.7867]
[1719232251874,7.7846,128.46,128.41,19.4679]
[1719232252093,19.4568,128.49,128.39,24.4441]
[1719232252300,7.7854,128.45,128.39,7.7886]
[1719232252498,19.4603,128.47,128.38,33.2823]
[1719232252797,45.0,128.48,128.43,7.7861]
[1719232252798,7.7836,128.48,128.43,7.7861]
[1719232253008,7.7836,128.48,128.42,27.2525]
[1719232253190,7.7836,128.48,128.43,7.7862]
[1719232253396,7.784,128.47,128.42,27.2527]
[1719232253580,25.4804,128.51,128.42,27.2527]
[1719232253581,7.7832,128.49,128.43,7.7861]
[1719232253784,7.7821,128.5,128.44,19.4639]
[1719232253983,7.7821,128.5,128.44,27.2493]
[1719232254184,6.0253,128.51,128.46,19.4612]
[1719232254506,13.807,128.51,128.46,19.4612]
[1719232254673,7.7821,128.5,128.45,7.7846]
[1719232254874,7.7817,128.51,128.46,7.7844]
[1719232255097,7.7817,128.51,128.45,27.2475]
[1719232255274,7.7822,128.5,128.45,27.2475]
[1719232255787,7.7815,128.51,128.46,7.7844]
[1719232255995,22.9442,128.52,128.47,7.7838]
[1719232256196,22.9445,128.52,128.47,27.243]
[1719232256593,7.7816,128.51,128.46,7.7843]
[1719232256799,7.7816,128.51,128.45,27.2475]
[1719232257587,6.0587,128.54,128.47,19.4597]
[1719232257787,7.7812,128.52,128.47,27.2432]
[1719232258102,7.7815,128.51,128.47,19.4597]
[1719232258282,6.0587,128.54,128.45,19.4627]
[1719232258283,19.4508,128.53,128.45,19.4627]
[1719232258492,7.7827,128.49,128.44,7.7856]
[1719232258785,7.7818,128.51,128.43,15.3547]
[1719232258985,7.7821,128.5,128.45,7.785]
[1719232259197,7.7821,128.5,128.45,19.4624]
[1719232259598,19.4541,128.51,128.43,7.7861]
[1719232259903,0.77863428,128.44,128.42,27.2525]
[1719232260120,0.77863428,128.44,128.43,7.7863]
[1719232263712,0.77863428,128.44,128.39,35.8718]
[1719232263916,0.77863428,128.44,128.4,7.7879]
[1719232264210,0.77863428,128.44,128.41,7.7874]
[1719232264386,0.77863428,128.44,128.4,7.7879]
[1719232264708,0.77863428,128.44,128.4,7.788]
[1719232264893,0.77863428,128.44,128.42,7.7866]
[1719232265203,0.77863428,128.44,128.37,38.949]
[1719232265408,0.77863428,128.44,128.41,7.7875]
[1719232265614,0.77863428,128.44,128.4,27.258]
[1719232265782,8.56433428,128.44,128.4,19.4702]
[1719232265986,0.77863428,128.44,128.4,27.2583]
[1719232266212,0.77863428,128.44,128.41,7.7871]
[1719232266386,0.77863428,128.44,128.4,27.2581]
[1719232266591,0.77863428,128.44,128.38,19.4733]
[1719232266791,8.56463428,128.44,128.39,7.7885]
[1719232267121,0.77863428,128.44,128.36,19.4762]
[1719232267286,7.7873,128.42,128.37,7.7898]
[1719232267485,7.7876,128.41,128.36,27.2666]
[1719232268600,16.5458,128.43,128.36,19.4762]
[1719232268803,7.7883,128.4,128.36,19.4762]
[1719232268999,7.7883,128.4,128.35,7.791]
[1719232269391,19.4676,128.42,128.34,19.4794]
[1719232269697,19.4676,128.42,128.34,27.271]
[1719232269698,7.7891,128.39,128.34,27.271]
[1719232269918,7.7884,128.4,128.35,7.7911]
[1719232270206,7.7877,128.41,128.36,7.7901]
[1719232270415,16.5458,128.43,128.38,7.7892]
[1719232270416,24.3322,128.43,128.38,7.7892]
[1719232270591,0.77863428,128.44,128.4,7.7881]
[1719232271002,0.77863428,128.44,128.34,100.0]
[1719232271214,0.77863428,128.44,128.35,45.0]
[1719232271387,0.77863428,128.44,128.35,145.0]
[1719232271589,0.77863428,128.44,128.4,27.2582]
[1719232271986,8.56443428,128.44,128.39,7.7885]
[1719232272232,0.77863428,128.44,128.38,19.4732]
[1719232272391,8.56443428,128.44,128.39,7.7882]
[1719232272593,0.77863428,128.44,128.4,7.7881]
[1719232272912,8.56433428,128.44,128.39,7.7885]
[1719232273293,0.77863428,128.44,128.39,7.7885]
[1719232273630,0.77863428,128.44,128.35,19.4765]
[1719232273797,7.7871,128.42,128.37,7.7896]
[1719232273997,7.7864,128.43,128.38,7.7892]
[1719232274303,20.24313428,128.44,128.36,19.475]
[1719232274509,7.7888,128.39,128.34,7.7913]
[1719232274711,7.7879,128.41,128.36,7.7905]
[1719232274919,0.77863428,128.44,128.35,19.4779]
[1719232275223,0.77863428,128.44,128.38,7.7892]
[1719232275224,7.7866,128.43,128.38,7.7892]
[1719232275423,8.56453428,128.44,128.39,7.7887]
[1719232275603,7.7864,128.43,128.38,7.7891]
[1719232276120,0.77863428,128.44,128.4,7.7878]
[1719232276332,0.77863428,128.44,128.43,7.7863]
[1719232276500,0.77863428,128.44,128.42,27.2537]
[1719232276701,0.77863428,128.44,128.42,19.4671]
[1719232277020,0.77863428,128.44,128.43,7.7863]
[1719232277399,0.77863428,128.44,128.43,52.7863]
[1719232277606,0.77863428,128.44,128.43,45.0]
[1719232277818,0.77863428,128.44,128.42,27.254]
[1719232278126,0.77863428,128.44,128.41,7.7874]
[1719232278506,0.77863428,128.44,128.4,27.2582]
[1719232278712,0.77863428,128.44,128.41,45.0]
[1719232279217,0.77863428,128.44,128.41,7.7874]
[1719232279422,0.77863428,128.44,128.42,27.2538]
[1719232279922,0.77863428,128.43,128.39,27.2587]
[1719232280308,0.77863428,128.43,128.36,38.952]
[1719232280309,8.56493428,128.43,128.38,7.7891]
[1719232280514,0.77863428,128.43,128.36,19.4753]
[1719232280848,7.7879,128.41,128.36,27.2655]
[1719232281018,7.7879,128.41,128.36,19.4753]
[1719232281830,7.16003428,128.43,128.38,19.4733]
[1719232282035,0.77863428,128.43,128.41,7.787]
[1719232282509,0.77863428,128.43,128.42,7.7869]
[1719232282910,0.77863428,128.43,128.42,52.7869]
[1719232284110,0.77863428,128.43,128.42,7.7869]
[1719232284315,0.77863428,128.43,128.41,19.4675]
[1719232284907,0.77863428,128.43,128.42,7.7869]
[1719232285727,0.77863428,128.43,128.41,19.4675]
[1719232286234,0.77863428,128.43,128.38,19.472]
[1719232286451,0.77863428,128.43,128.42,7.7869]
[1719232286737,0.77863428,128.43,128.42,27.2542]
[1719232287148,0.77863428,128.43,128.42,72.2542]
[1719232288033,0.77863428,128.43,128.42,7.7869]
[1719232288216,0.77863428,128.43,128.41,27.2559]
[1719232288410,0.77863428,128.43,128.42,7.7869]
[1719232289034,0.77863428,128.43,128.41,27.2559]
[1719232289217,0.77863428,128.43,128.41,19.4686]
[1719232289423,0.77863428,128.43,128.36,60.5514]
[1719232289628,0.77863428,128.43,128.41,7.7872]
[1719232289833,0.77863428,128.43,128.4,27.257]
[1719232290433,0.77863428,128.43,128.4,27.2568]
[1719232290637,0.77863428,128.43,128.4,19.4689]
[1719232291331,0.77863428,128.43,128.37,19.4735]
[1719232291965,0.77863428,128.43,128.33,38.9611]
[1719232291966,16.31643428,128.43,128.33,38.9611]
[1719232292131,7.7877,128.41,128.36,7.7903]
[1719232292450,24.10323428,128.43,128.38,7.789]
[1719232292931,7.787,128.42,128.37,27.2644]
[1719232293332,7.787,128.42,128.33,38.9611]
[1719232293333,7.7878,128.41,128.36,7.7905]
[1719232293751,16.31643428,128.43,128.37,45.0]
[1719232293947,16.31643428,128.43,128.42,7.7869]
[1719232293948,0.77863428,128.43,128.42,7.7869]
[1719232294243,0.77863428,128.43,128.42,19.4673]
[1719232294447,0.77863428,128.43,128.41,7.7873]
[1719232294650,0.77863428,128.43,128.4,7.7879]
[1719232294837,0.77863428,128.43,128.38,7.7891]
[1719232295042,0.77863428,128.43,128.39,7.7884]
[1719232295246,0.77863428,128.43,128.36,7.7901]
[1719232295440,7.7877,128.41,128.35,27.2678]
[1719232295635,7.7877,128.41,128.35,19.4771]
[1719232295945,7.7877,128.41,128.36,7.7905]
[1719232296330,0.77863428,128.43,128.37,7.7897]
[1719232296331,7.7871,128.42,128.37,7.7897]
[1719232296833,16.0431,128.4,128.34,7.7916]
[1719232297047,16.0431,128.4,128.3,38.97]
[1719232297048,7.7901,128.37,128.3,38.97]
[1719232297230,16.0431,128.4,128.3,7.7936]
[1719232297434,7.7914,128.35,128.29,19.487]
[1719232297751,7.7896,128.38,128.31,19.4838]
[1719232297934,7.7896,128.38,128.32,7.7927]
[1719232298130,35.5135,128.4,128.31,19.4838]
[1719232298335,7.7901,128.37,128.31,27.2772]
[1719232298545,1.37881797,128.39,128.31,27.2772]
[1719232298863,46.37881797,128.39,128.31,27.277]
[1719232299233,7.7916,128.35,128.29,7.7945]
[1719232299831,0.77863428,128.3,128.29,7.7945]
[1719232300661,0.77863428,128.3,128.28,27.283]
[1719232301039,0.77863428,128.3,128.29,7.7948]
[1719232301238,0.77863428,128.3,128.25,19.4923]
[1719232301440,0.77863428,128.3,128.26,7.7962]
[1719232301762,0.77863428,128.3,128.27,27.2855]
[1719232302144,0.77863428,128.3,128.28,7.7953]
[1719232302469,0.77863428,128.3,128.29,27.2818]
[1719232302936,0.77863428,128.3,128.29,19.487]
[1719232303445,0.77863428,128.3,128.28,7.7951]
[1719232303647,0.77863428,128.3,128.25,38.9841]
[1719232303849,0.77863428,128.3,128.28,27.2833]
[1719232304031,0.77863428,128.3,128.23,21.5898]
[1719232304032,0.77863428,128.3,128.27,7.796]
[1719232304234,0.77863428,128.3,128.28,7.7953]
[1719232304972,0.77863428,128.3,128.27,7.7958]
[1719232305140,0.77863428,128.3,128.28,19.4885]
[1719232305541,0.77863428,128.3,128.28,27.2836]
[1719232306137,0.77863428,128.3,128.28,19.4885]
[1719232306763,0.77863428,128.3,128.28,27.2838]
[1719232307253,0.77863428,128.3,128.28,19.4885]
[1719232307456,0.77863428,128.3,128.28,27.2836]
[1719232307644,0.77863428,128.3,128.28,27.2839]
[1719232308046,0.77863428,128.3,128.25,58.477]
[1719232308244,0.77863428,128.3,128.26,7.7962]
[1719232308642,8.57283428,128.3,128.25,27.2889]
[1719232308845,0.77863428,128.3,128.26,7.7966]
[1719232309354,0.77863428,128.3,128.27,7.796]
[1719232309556,8.57293428,128.3,128.25,27.2887]
[1719232309754,0.77863428,128.3,128.25,19.4919]
[1719232309946,0.77863428,128.3,128.26,7.7964]
[1719232310736,0.77863428,128.3,128.23,19.4961]
[1719232310955,7.7955,128.28,128.23,27.2941]
[1719232311659,14.61443428,128.3,128.25,7.7971]
[1719232311956,7.7949,128.29,128.24,19.4932]
[1719232312252,6.81973428,128.3,128.24,19.4932]
[1719232312662,14.61423428,128.3,128.25,7.7971]
[1719232313164,7.795,128.29,128.24,27.2909]
[1719232313869,7.7955,128.28,128.24,19.4932]
[1719232314066,7.7955,128.28,128.21,100.0]
[1719232314067,7.796,128.27,128.22,27.2965]
[1719232314360,6.81973428,128.3,128.23,45.0]
[1719232314575,7.7959,128.28,128.23,7.7982]
[1719232314868,7.7959,128.28,128.22,19.4977]
[1719232314869,15.1014,128.29,128.19,275.7015]
[1719232315039,7.7972,128.26,128.21,7.7996]
[1719232315239,7.7972,128.25,128.21,7.7996]
[1719232315461,7.7971,128.26,128.21,7.7996]
[1719232316565,15.1014,128.29,128.19,256.2]
[1719232316771,15.1014,128.29,128.23,19.4948]